fUST/lending_fUST_20260124
["ID","MTS","AMOUNT","RATE_DAILY","PERIOD"]
[403215259,1769268632290,-18615.50742992,0.00010873,2]
[403215260,1769268632299,-5033.79,0.00010945,2]
[403215261,1769268632308,-16616.46567443,0.00011048,2]
[403215270,1769268638391,-300.0,0.00011048,2]
[403215271,1769268638400,-300.0,0.00011048,2]
[403215272,1769268638410,-300.0,0.00011048,2]
[403215273,1769268638420,-137.09893894,0.00011048,2]
[403215274,1769268638436,-162.90106106,0.00011048,2]
[403215275,1769268638445,-300.0,0.00011048,2]
[403215276,1769268638457,-300.0,0.00011048,2]
[403215277,1769268638466,-300.0,0.00011048,2]
[403215278,1769268638475,-300.0,0.00011048,2]
[403215279,1769268638485,-300.0,0.00011048,2]
[403215280,1769268638494,-300.0,0.00011048,2]
[403215281,1769268638504,-300.0,0.00011048,2]
[403215283,1769268638513,-300.0,0.00011048,2]
[403215284,1769268638523,-300.0,0.00011048,2]
[403215285,1769268638532,-300.0,0.00011048,2]
[403215286,1769268638541,-300.0,0.00011048,2]
[403215287,1769268638551,-600.0,0.00011048,2]
[403215288,1769268638560,-420.0,0.00011091,2]
[403215289,1769268638570,-151.0,0.000113,2]
[403215290,1769268638579,-180.0,0.0001137,2]
[403215292,1769268638589,-177.34508648,0.0001137,2]
[403215293,1769268638599,-1066.15209811,0.00011391,2]
[403215294,1769268638608,-151.0,0.000115,2]
[403215295,1769268638617,-6711.73,0.00011787,2]
[403215296,1769268638627,-151.0,0.000118,2]
[403215297,1769268638636,-364.70948866,0.00011985,2]
[403215298,1769268638645,-1416.2646128,0.00012,5]
[403215300,1769268638655,-382.43603421,0.00012079,2]
[403215301,1769268638664,-151.0,0.000121,2]
[403215302,1769268638674,-720.0,0.00012152,2]
[403215303,1769268638683,-500.0,0.00012178,2]
[403215304,1769268638692,-250.0,0.00012178,2]
[403215305,1769268638702,-250.0,0.00012178,2]
[403215306,1769268638711,-250.0,0.00012178,2]
[403215307,1769268638720,-250.0,0.00012178,2]
[403215308,1769268638730,-250.0,0.00012178,2]
[403215309,1769268638739,-250.0,0.00012178,2]
[403215310,1769268638749,-250.0,0.00012178,2]
[403215311,1769268638758,-250.0,0.00012178,2]
[403215312,1769268638767,-250.0,0.00012178,2]
[403215313,1769268638777,-250.0,0.00012178,2]
[403215314,1769268638787,-250.0,0.00012178,2]
[403215315,1769268638796,-250.0,0.00012178,2]
[403215316,1769268638806,-250.0,0.00012178,2]
[403215317,1769268638815,-250.0,0.00012178,2]
[403215318,1769268638824,-587.0,0.000122,2]
[403215319,1769268638833,-204.70653832,0.00012229,2]
[403215320,1769268638842,-151.0,0.000123,2]
[403215321,1769268638851,-2073.77,0.00012329,2]
[403215322,1769268638861,-1728.14,0.00012329,2]
[403215323,1769268638870,-1440.12,0.00012329,2]
[403215324,1769268638879,-1200.1,0.00012329,2]
[403215325,1769268638888,-1000.08,0.00012329,2]
[403215326,1769268638898,-833.4,0.00012329,2]
[403215327,1769268638907,-694.5,0.00012329,2]
[403215328,1769268638916,-578.75,0.00012329,2]
[403215329,1769268638926,-482.29,0.00012329,2]
[403215330,1769268638935,-401.91,0.00012329,2]
[403215331,1769268638943,-334.93,0.00012329,2]
[403215332,1769268638953,-279.11,0.00012329,2]
[403215333,1769268638962,-234.05316125,0.00012433,2]
[403215334,1769268638972,-500.0,0.00012452,2]
[403215335,1769268638981,-151.0,0.000126,2]
[403215336,1769268638990,-8389.66,0.00012629,2]
[403215337,1769268638999,-160.0,0.00012726,2]
[403215338,1769268639010,-160.0,0.00012726,2]
[403215339,1769268639019,-160.0,0.00012726,2]
[403215340,1769268639028,-251.09092124,0.00012726,2]
[403215341,1769268639038,-500.0,0.00012726,2]
[403215342,1769268639047,-151.0,0.000129,2]
[403215343,1769268639057,-500.0,0.00013,2]
[403215344,1769268639066,-157.3122286,0.00013151,2]
[403215345,1769268639074,-1957.856,0.0001317,2]
[403215346,1769268639084,-151.0,0.0001317,2]
[403215347,1769268639092,-500.0,0.0001317,2]
[403215348,1769268639101,-151.0,0.0001317,2]
[403215349,1769268639110,-500.0,0.0001317,2]
[403215350,1769268639120,-151.0,0.0001317,2]
[403215351,1769268639129,-500.0,0.0001317,2]
[403215352,1769268639137,-151.0,0.0001317,2]
[403215353,1769268639146,-500.0,0.0001317,2]
[403215354,1769268639155,-151.0,0.0001317,2]
[403215355,1769268639164,-187.78006525,0.0001317,2]
[403215356,1769268639173,-151.0,0.0001317,2]
[403215357,1769268639182,-500.0,0.0001317,2]
[403215358,1769268639193,-194.72792766,0.0001317,2]
[403215359,1769268639202,-514.84070869,0.0001317,2]
[403215360,1769268639211,-500.0,0.0001317,2]
[403215361,1769268639219,-201.93286099,0.0001317,2]
[403215362,1769268639229,-500.0,0.0001317,2]
[403215363,1769268639238,-209.40437684,0.0001317,2]
[403215364,1769268639248,-2487.15318209,0.0001317,2]
[403215365,1769268639274,-500.0,0.0001317,2]
[403215366,1769268639291,-217.15233878,0.0001317,2]
[403215367,1769268639301,-238.55319979,0.0001317,2]
[403215368,1769268639311,-557.5788265,0.0001317,2]
[403215369,1769268639325,-225.18697532,0.0001317,2]
[403215370,1769268639334,-233.51889341,0.0001317,2]
[403215371,1769268639344,-242.15909246,0.0001317,2]
[403215372,1769268639354,-251.11897888,0.0001317,2]
[403215373,1769268639366,-260.4103811,0.0001317,2]
[403215374,1769268639375,-270.0455652,0.0001317,2]
[403215375,1769268639384,-280.03725112,0.0001317,2]
[403215376,1769268639398,-290.39862941,0.0001317,2]
[403215377,1769268639407,-301.1433787,0.0001317,2]
[403215378,1769268639419,-517.80623311,0.0001317,2]
[403215379,1769268639428,-151.0,0.0001317,2]
[403215380,1769268639437,-151.0,0.0001317,2]
[403215381,1769268639446,-151.0,0.0001317,2]
[403215382,1769268639455,-152.99083282,0.0001317,2]
[403215383,1769268639464,-151.0,0.000132,2]
[403215384,1769268639472,-388.11664685,0.00013225,2]
[403215385,1769268639488,-500.0,0.00013273,2]
[403215386,1769268639497,-500.0,0.00013273,2]
[403215387,1769268639507,-500.0,0.00013273,2]
[403215388,1769268639518,-500.0,0.00013273,2]
[403215389,1769268639527,-500.0,0.00013273,2]
[403215390,1769268639537,-505.9050703,0.00013273,2]
[403215391,1769268639552,-500.0,0.00013273,2]
[403215392,1769268639568,-500.83674418,0.00013273,2]
[403215393,1769268639577,-500.0,0.00013273,2]
[403215394,1769268639587,-526.40517274,0.00013273,2]
[403215395,1769268639596,-507.01248361,0.00013273,2]
[403215396,1769268639605,-454.44780266,0.00013273,2]
[403215397,1769268639615,-351.17401254,0.00013273,2]
[403215398,1769268639624,-500.0,0.00013273,2]
[403215399,1769268639634,-500.0,0.00013273,2]
[403215400,1769268639643,-502.45748161,0.00013273,2]
[403215401,1769268639652,-158.11625829,0.00013273,2]
[403215402,1769268639662,-500.0,0.00013273,2]
[403215403,1769268639671,-602.28532512,0.00013273,2]
[403215404,1769268639681,-501.13614379,0.00013273,2]
[403215405,1769268639690,-500.0,0.00013273,2]
[403215406,1769268639699,-500.0,0.00013273,2]
[403215407,1769268639708,-500.0,0.00013273,2]
[403215408,1769268639718,-546.06087703,0.00013273,2]
[403215409,1769268639728,-500.0,0.00013273,2]
[403215410,1769268639738,-500.0,0.00013273,2]
[403215411,1769268639747,-500.0,0.00013273,2]
[403215412,1769268639756,-500.0,0.00013273,2]
[403215413,1769268639766,-500.0,0.00013273,2]
[403215414,1769268639775,-500.0,0.00013273,2]
[403215415,1769268639785,-500.0,0.00013274,2]
[403215416,1769268639794,-864.0,0.00013368,2]
[403215417,1769268639803,-151.0,0.000134,2]
[403215418,1769268639813,-823.0,0.00013418,2]
[403215419,1769268639822,-10067.59,0.00013471,2]
[403215420,1769268639831,-5001.99100161,0.0001354,2]
[403215421,1769268639840,-500.0,0.00013548,2]
[403215422,1769268639850,-665.629,0.00013671,2]
[403215423,1769268639859,-1368.0,0.00013671,2]
[403215424,1769268639869,-2149.0,0.00013671,2]
[403215425,1769268639878,-715.0,0.00013671,2]
[403215426,1769268639888,-201.342,0.00013671,2]
[403215427,1769268639898,-418.0,0.00013671,2]
[403215428,1769268639908,-398.67463072,0.00013673,2]
[403215429,1769268639917,-300.0,0.00013673,2]
[403215430,1769268639926,-2343.84076675,0.0001369,2]
[403215431,1769268639936,-500.23464073,0.00013698,2]
[403215432,1769268639945,-500.0,0.00013698,2]
[403215433,1769268639954,-500.0,0.00013698,2]
[403215434,1769268639964,-500.0,0.00013698,2]
[403215435,1769268639973,-500.0,0.00013698,2]
[403215436,1769268639982,-500.0,0.00013698,2]
[403215437,1769268639992,-500.0,0.00013698,2]
[403215438,1769268640001,-532.46264446,0.00013698,2]
[403215439,1769268640011,-500.0,0.00013698,2]
[403215440,1769268640021,-500.0,0.00013698,2]
[403215441,1769268640030,-502.12416041,0.00013698,2]
[403215442,1769268640039,-506.78248694,0.00013698,2]
[403215443,1769268640048,-518.63737693,0.00013698,2]
[403215444,1769268640059,-500.0,0.00013698,2]
[403215445,1769268640068,-500.0,0.00013698,2]
[403215446,1769268640076,-500.0,0.00013698,2]
[403215447,1769268640086,-500.0,0.00013698,2]
[403215448,1769268640095,-500.0,0.00013698,2]
[403215449,1769268640105,-500.0,0.00013698,2]
[403215450,1769268640114,-500.0,0.00013698,2]
[403215451,1769268640123,-500.0,0.00013698,2]
[403215452,1769268640132,-309.81202551,0.00013698,2]
[403215453,1769268640141,-500.0,0.00013698,2]
[403215454,1769268640151,-500.0,0.00013698,2]
[403215455,1769268640160,-500.0,0.00013698,2]
[403215456,1769268640169,-500.0,0.00013698,2]
[403215457,1769268640178,-500.0,0.00013698,2]
[403215458,1769268640187,-500.0,0.00013698,2]
[403215459,1769268640196,-505.74002946,0.00013698,2]
[403215460,1769268640205,-500.0,0.00013698,2]
[403215461,1769268640215,-500.0,0.00013698,2]
[403215462,1769268640224,-525.21238282,0.00013698,2]
[403215463,1769268640233,-500.0,0.00013698,2]
[403215464,1769268640243,-500.0,0.00013698,2]
[403215465,1769268640252,-500.0,0.00013698,2]
[403215466,1769268640261,-500.0,0.00013698,2]
[403215467,1769268640271,-500.0,0.00013698,2]
[403215468,1769268640281,-500.0,0.00013698,2]
[403215469,1769268640290,-500.0,0.00013698,2]
[403215470,1769268640299,-500.0,0.00013698,2]
[403215471,1769268640309,-500.0,0.00013698,2]
[403215472,1769268640322,-500.0,0.00013698,2]
[403215473,1769268640529,-500.0,0.00013698,2]
[403215474,1769268640539,-500.0,0.00013698,2]
[403215475,1769268640549,-500.0,0.00013698,2]
[403215476,1769268640557,-265.755727,0.00013698,2]
[403215477,1769268640568,-500.0,0.00013698,2]
[403215478,1769268640577,-500.0,0.00013698,2]
[403215479,1769268640589,-500.0,0.00013698,2]
[403215480,1769268640598,-200.03287856,0.00013698,2]
[403215481,1769268640607,-500.0,0.00013698,2]
[403215482,1769268640617,-500.0,0.00013698,2]
[403215483,1769268640626,-500.0,0.00013698,2]
[403215484,1769268640635,-512.64896451,0.00013698,2]
[403215485,1769268640644,-500.0,0.00013698,2]
[403215486,1769268640654,-508.55713954,0.00013698,2]
[403215487,1769268640663,-500.0,0.00013698,2]
[403215488,1769268640672,-500.0,0.00013698,2]
[403215489,1769268640682,-500.0,0.00013698,2]
[403215490,1769268640691,-525.85274494,0.00013698,2]
[403215491,1769268640710,-500.0,0.00013698,2]
[403215493,1769268640730,-500.0,0.00013698,2]
[403215494,1769268640751,-500.0,0.00013698,2]
[403215495,1769268640772,-500.0,0.00013698,2]
[403215496,1769268640794,-500.0,0.00013698,2]
[403215497,1769268640815,-500.0,0.00013698,2]
[403215498,1769268640838,-500.0,0.00013698,2]
[403215500,1769268640860,-500.0,0.00013698,2]
[403215502,1769268640882,-393.79159877,0.00013698,2]
[403215504,1769268640903,-500.0,0.00013698,2]
[403215505,1769268640911,-500.0,0.00013698,2]
[403215506,1769268640920,-500.0,0.00013698,2]
[403215507,1769268640929,-500.0,0.00013698,2]
[403215508,1769268640939,-500.0,0.00013698,2]
[403215509,1769268640947,-500.0,0.00013698,2]
[403215510,1769268640956,-500.0,0.00013698,2]
[403215511,1769268640965,-500.0,0.00013698,2]
[403215512,1769268640974,-500.0,0.00013698,2]
[403215513,1769268640983,-500.0,0.00013698,2]
[403215514,1769268640993,-500.0,0.00013698,2]
[403215515,1769268641002,-500.0,0.00013698,2]
[403215516,1769268641012,-245.06524304,0.00013698,2]
[403215517,1769268641021,-500.0,0.00013698,2]
[403215518,1769268641031,-500.0,0.00013698,2]
[403215519,1769268641040,-500.0,0.00013698,2]
[403215520,1769268641049,-500.0,0.00013698,2]
[403215521,1769268641058,-500.0,0.00013698,2]
[403215522,1769268641067,-500.0,0.00013698,2]
[403215523,1769268641076,-530.80271537,0.00013698,2]
[403215524,1769268641085,-500.0,0.00013698,2]
[403215525,1769268641094,-500.0,0.00013698,2]
[403215526,1769268641103,-500.0,0.00013698,2]
[403215527,1769268641112,-500.0,0.00013698,2]
[403215528,1769268641121,-500.0,0.00013698,2]
[403215529,1769268641131,-500.0,0.00013698,2]
[403215530,1769268641140,-500.0,0.00013698,2]
[403215531,1769268641149,-277.35929778,0.00013698,2]
[403215532,1769268641158,-500.0,0.00013698,2]
[403215533,1769268641167,-500.0,0.00013698,2]
[403215534,1769268641176,-500.0,0.00013698,2]
[403215535,1769268641185,-514.68355487,0.00013698,2]
[403215536,1769268641194,-500.0,0.00013698,2]
[403215537,1769268641203,-500.0,0.00013698,2]
[403215539,1769268641213,-500.0,0.00013698,2]
[403215541,1769268641222,-500.0,0.00013698,2]
[403215543,1769268641233,-500.0,0.00013698,2]
[403215545,1769268641242,-500.0,0.00013698,2]
[403215547,1769268641250,-500.0,0.00013698,2]
[403215549,1769268641259,-500.0,0.00013698,2]
[403215551,1769268641269,-500.0,0.00013698,2]
[403215553,1769268641278,-500.0,0.00013698,2]
[403215555,1769268641288,-500.0,0.00013698,2]
[403215557,1769268641297,-500.0,0.00013698,2]
[403215559,1769268641306,-500.0,0.00013698,2]
[403215561,1769268641315,-500.0,0.00013698,2]
[403215563,1769268641327,-500.0,0.00013698,2]
[403215566,1769268641336,-539.09506002,0.00013698,2]
[403215568,1769268641345,-501.62884607,0.00013698,2]
[403215570,1769268641354,-505.05037632,0.00013698,2]
[403215572,1769268641364,-500.0,0.00013698,2]
[403215573,1769268641374,-500.0,0.00013698,2]
[403215575,1769268641383,-500.0,0.00013698,2]
[403215577,1769268641392,-500.0,0.00013698,2]
[403215579,1769268641401,-500.0,0.00013698,2]
[403215581,1769268641410,-500.0,0.00013698,2]
[403215584,1769268641419,-500.0,0.00013698,2]
[403215585,1769268641428,-500.0,0.00013698,2]
[403215587,1769268641437,-500.0,0.00013698,2]
[403215589,1769268641446,-500.0,0.00013698,2]
[403215591,1769268641454,-500.0,0.00013698,2]
[403215593,1769268641463,-500.0,0.00013698,2]
[403215596,1769268641473,-500.0,0.00013698,2]
[403215598,1769268641482,-500.0,0.00013698,2]
[403215600,1769268641491,-568.24041192,0.00013698,2]
[403215602,1769268641499,-500.0,0.00013698,2]
[403215604,1769268641508,-500.5143704,0.00013698,2]
[403215606,1769268641517,-500.0,0.00013698,2]
[403215607,1769268641526,-356.29380504,0.00013698,2]
[403215610,1769268641536,-500.0,0.00013698,2]
[403215612,1769268641544,-500.0,0.00013698,2]
[403215613,1769268641553,-519.46508168,0.00013698,2]
[403215615,1769268641562,-206.94288894,0.00013698,2]
[403215617,1769268641571,-500.0,0.00013698,2]
[403215619,1769268641582,-500.84779868,0.00013698,2]
[403215621,1769268641591,-500.0,0.00013698,2]
[403215624,1769268641600,-545.08474828,0.00013698,2]
[403215626,1769268641610,-500.0,0.00013698,2]
[403215628,1769268641619,-500.0,0.00013698,2]
[403215629,1769268641630,-500.0,0.00013698,2]
[403215631,1769268641638,-525.22361947,0.00013698,2]
[403215634,1769268641648,-376.7666929,0.00013698,2]
[403215635,1769268641657,-500.0,0.00013698,2]
[403215638,1769268641667,-523.50415008,0.00013698,2]
[403215640,1769268641676,-500.0,0.00013698,2]
[403215642,1769268641685,-500.0,0.00013698,2]
[403215644,1769268641694,-470.75589353,0.00013698,2]
[403215645,1769268641703,-500.0,0.00013698,2]
[403215648,1769268641712,-500.311382,0.00013698,2]
[403215650,1769268641721,-500.0,0.00013698,2]
[403215652,1769268641730,-500.0,0.00013698,2]
[403215654,1769268641739,-500.0,0.00013698,2]
[403215655,1769268641748,-500.0,0.00013698,2]
[403215657,1769268641756,-518.57466671,0.00013698,2]
[403215659,1769268641766,-500.0,0.00013698,2]
[403215661,1769268641775,-502.72527379,0.00013698,2]
[403215663,1769268641784,-500.0,0.00013698,2]
[403215665,1769268641794,-500.0,0.00013698,2]
[403215667,1769268641803,-500.0,0.00013698,2]
[403215669,1769268641811,-500.0,0.00013698,2]
[403215671,1769268641819,-500.0,0.00013698,2]
[403215673,1769268641828,-526.5467241,0.00013698,2]
[403215675,1769268641837,-500.0,0.00013698,2]
[403215677,1769268641846,-500.0,0.00013698,2]
[403215679,1769268641855,-500.0,0.00013698,2]
[403215681,1769268641864,-500.0,0.00013698,2]
[403215683,1769268641873,-519.03521222,0.00013698,2]
[403215685,1769268641882,-500.0,0.00013698,2]
[403215687,1769268641891,-500.36266187,0.00013698,2]
[403215689,1769268641900,-500.0,0.00013698,2]
[403215691,1769268641909,-500.0,0.00013698,2]
[403215693,1769268641918,-500.0,0.00013698,2]
[403215695,1769268641927,-500.0,0.00013698,2]
[403215697,1769268641936,-500.0,0.00013698,2]
[403215699,1769268641945,-500.0,0.00013698,2]
[403215701,1769268641953,-500.0,0.00013698,2]
[403215703,1769268641962,-500.0,0.00013698,2]
[403215705,1769268641971,-500.0,0.00013698,2]
[403215707,1769268641980,-500.0,0.00013698,2]
[403215709,1769268641989,-500.0,0.00013698,2]
[403215711,1769268641998,-500.0,0.00013698,2]
[403215713,1769268642006,-500.0,0.00013698,2]
[403215715,1769268642015,-500.0,0.00013698,2]
[403215717,1769268642025,-500.0,0.00013698,2]
[403215719,1769268642035,-552.50370354,0.00013698,2]
[403215721,1769268642044,-500.0,0.00013698,2]
[403215723,1769268642053,-500.0,0.00013698,2]
[403215725,1769268642062,-500.0,0.00013698,2]
[403215727,1769268642071,-500.0,0.00013698,2]
[403215729,1769268642080,-500.0,0.00013698,2]
[403215731,1769268642090,-500.0,0.00013698,2]
[403215733,1769268642098,-500.0,0.00013698,2]
[403215735,1769268642107,-500.0,0.00013698,2]
[403215737,1769268642116,-500.0,0.00013698,2]
[403215739,1769268642125,-500.0,0.00013698,2]
[403215740,1769268642134,-500.0,0.00013698,2]
[403215743,1769268642143,-500.0,0.00013698,2]
[403215745,1769268642152,-500.0,0.00013698,2]
[403215747,1769268642161,-500.0,0.00013698,2]
[403215749,1769268642170,-503.85001058,0.00013698,2]
[403215750,1769268642180,-500.0,0.00013698,2]
[403215752,1769268642189,-516.1635096,0.00013698,2]
[403215754,1769268642198,-500.0,0.00013698,2]
[403215757,1769268642207,-500.0,0.00013698,2]
[403215759,1769268642216,-528.82188129,0.00013698,2]
[403215761,1769268642225,-500.0,0.00013698,2]
[403215762,1769268642235,-500.0,0.00013698,2]
[403215765,1769268642245,-182.0,0.00013698,2]
[403215767,1769268642254,-500.0,0.00013698,2]
[403215768,1769268642263,-500.0,0.00013698,2]
[403215770,1769268642271,-500.0,0.00013698,2]
[403215772,1769268642281,-500.0,0.00013698,2]
[403215775,1769268642290,-500.0,0.00013698,2]
[403215776,1769268642299,-500.0,0.00013698,2]
[403215779,1769268642309,-500.0,0.00013698,2]
[403215781,1769268642322,-500.0,0.00013698,2]
[403215782,1769268642331,-500.0,0.00013698,2]
[403215784,1769268642340,-500.0,0.00013698,2]
[403215787,1769268642349,-500.0,0.00013698,2]
[403215789,1769268642358,-532.47579264,0.00013698,2]
[403215791,1769268642367,-500.0,0.00013698,2]
[403215793,1769268642376,-500.0,0.00013698,2]
[403215795,1769268642385,-500.0,0.00013698,2]
[403215797,1769268642395,-500.0,0.00013698,2]
[403215799,1769268642404,-500.0,0.00013698,2]
[403215801,1769268642413,-500.0,0.00013698,2]
[403215803,1769268642423,-500.0,0.00013698,2]
[403215805,1769268642432,-500.0,0.00013698,2]
[403215807,1769268642441,-500.0,0.00013698,2]
[403215809,1769268642450,-500.0,0.00013698,2]
[403215811,1769268642460,-500.0,0.00013698,2]
[403215813,1769268642469,-500.0,0.00013698,2]
[403215815,1769268642478,-500.0,0.00013698,2]
[403215817,1769268642487,-500.0,0.00013698,2]
[403215819,1769268642496,-500.0,0.00013698,2]
[403215821,1769268642506,-500.0,0.00013698,2]
[403215823,1769268642515,-500.68154259,0.00013698,2]
[403215825,1769268642524,-500.0,0.00013698,2]
[403215827,1769268642533,-500.0,0.00013698,2]
[403215829,1769268642543,-500.0,0.00013698,2]
[403215831,1769268642552,-500.0,0.00013698,2]
[403215833,1769268642561,-500.0,0.00013698,2]
[403215835,1769268642571,-500.0,0.00013698,2]
[403215837,1769268642580,-488.63356063,0.00013698,2]
[403215839,1769268642590,-500.0,0.00013698,2]
[403215841,1769268642599,-500.48391178,0.00013698,2]
[403215843,1769268642608,-500.0,0.00013698,2]
[403215846,1769268642618,-500.0,0.00013698,2]
[403215848,1769268642627,-500.0,0.00013698,2]
[403215849,1769268642636,-500.0,0.00013698,2]
[403215852,1769268642646,-500.0,0.00013698,2]
[403215854,1769268642656,-500.0,0.00013698,2]
[403215856,1769268642665,-500.0,0.00013698,2]
[403215858,1769268642675,-1042.67185671,0.00013698,2]
[403215860,1769268642684,-513.42564403,0.00013698,2]
[403215862,1769268642694,-500.0,0.00013698,2]
[403215864,1769268642704,-500.0,0.00013698,2]
[403215866,1769268642714,-500.0,0.00013698,2]
[403215868,1769268642723,-500.0,0.00013698,2]
[403215870,1769268642733,-500.0,0.00013698,2]
[403215872,1769268642743,-500.0,0.00013698,2]
[403215874,1769268642752,-500.0,0.00013698,2]
[403215876,1769268642762,-500.0,0.00013698,2]
[403215878,1769268642771,-500.0,0.00013698,2]
[403215880,1769268642780,-500.0,0.00013698,2]
[403215882,1769268642790,-500.0,0.00013698,2]
[403215884,1769268642799,-501.53754625,0.00013698,2]
[403215886,1769268642808,-500.0,0.00013698,2]
[403215888,1769268642817,-500.0,0.00013698,2]
[403215890,1769268642826,-500.0,0.00013698,2]
[403215892,1769268642835,-500.0,0.00013698,2]
[403215894,1769268642844,-500.0,0.00013698,2]
[403215896,1769268642854,-500.0,0.00013698,2]
[403215898,1769268642863,-500.0,0.00013698,2]
[403215900,1769268642872,-500.0,0.00013698,2]
[403215902,1769268642881,-500.0,0.00013698,2]
[403215905,1769268642891,-500.0,0.00013698,2]
[403215908,1769268642899,-500.0,0.00013698,2]
[403215911,1769268642909,-500.0,0.00013698,2]
[403215913,1769268642919,-500.0,0.00013698,2]
[403215915,1769268642927,-500.0,0.00013698,2]
[403215917,1769268642936,-500.0,0.00013698,2]
[403215919,1769268642945,-500.0,0.00013698,2]
[403215921,1769268642954,-500.0,0.00013698,2]
[403215923,1769268642963,-500.0,0.00013698,2]
[403215925,1769268642972,-500.0,0.00013698,2]
[403215927,1769268642981,-500.0,0.00013698,2]
[403215929,1769268642991,-500.0,0.00013698,2]
[403215931,1769268643000,-500.0,0.00013698,2]
[403215933,1769268643009,-500.0,0.00013698,2]
[403215935,1769268643018,-500.0,0.00013698,2]
[403215936,1769268643027,-500.0,0.00013698,2]
[403215938,1769268643038,-500.0,0.00013698,2]
[403215940,1769268643047,-500.0,0.00013698,2]
[403215942,1769268643056,-500.0,0.00013698,2]
[403215944,1769268643065,-500.0,0.00013698,2]
[403215946,1769268643074,-388.85283817,0.00013698,2]
[403215948,1769268643083,-500.0,0.00013698,2]
[403215951,1769268643093,-500.0,0.00013698,2]
[403215954,1769268643102,-500.0,0.00013698,2]
[403215956,1769268643111,-481.76456804,0.00013698,2]
[403215959,1769268643120,-500.0,0.00013698,2]
[403215962,1769268643130,-500.0,0.00013698,2]
[403215965,1769268643139,-550.01448977,0.00013698,2]
[403215968,1769268643148,-500.0,0.00013698,2]
[403215970,1769268643157,-500.0,0.00013698,2]
[403215972,1769268643166,-500.0,0.00013698,2]
[403215974,1769268643175,-500.0,0.00013698,2]
[403215976,1769268643184,-500.0,0.00013698,2]
[403215979,1769268643193,-500.0,0.00013698,2]
[403215982,1769268643202,-307.36459346,0.00013698,2]
[403215985,1769268643212,-500.0,0.00013698,2]
[403215988,1769268643221,-500.0,0.00013698,2]
[403215990,1769268643230,-1000.0,0.00013698,2]
[403215992,1769268643239,-437.64925408,0.00013698,2]
[403215994,1769268643248,-500.0,0.00013698,2]
[403215996,1769268643258,-500.0,0.00013698,2]
[403215998,1769268643268,-500.0,0.00013698,2]
[403216000,1769268643277,-500.0,0.00013698,2]
[403216002,1769268643286,-500.0,0.00013698,2]
[403216004,1769268643296,-476.39,0.00013698,2]
[403216006,1769268643307,-500.0,0.00013698,2]
[403216008,1769268643317,-500.0,0.00013698,2]
[403216010,1769268643332,-500.0,0.00013698,2]
[403216012,1769268643342,-500.0,0.00013698,2]
[403216013,1769268643352,-500.0,0.00013698,2]
[403216014,1769268643362,-500.0,0.00013698,2]
[403216015,1769268643371,-500.0,0.00013698,2]
[403216016,1769268643379,-500.0,0.00013698,2]
[403216017,1769268643388,-500.0,0.00013698,2]